{"text_format":"3","workbook":"xlsx","n_sheets":4,"sheets":["Вехи","План разработки","Об этой книге","Данные диаграммы"],"not_rendered":{"charts":1,"defined_names":2},"read":"whole","date_system":"1900"}

{"sheet":"Вехи","index":0,"n_rows":27,"n_cols":5,"rows_kept":27}
["Укажите на этом листе важные вехи и мероприятия, чтобы создать план разработки продукта.\nВ ячейке C1 содержится название листа. \nСведения о том, как использовать этот лист, включая инструкции для средств чтения с экрана, приведены на листе «Об этой книге».\nДальнейшие инструкции вы найдете в расположенных ниже ячейках столбца A.",null,"Вехи"]
["Ячейки C2–E2 содержат заголовки столбцов таблицы. Для сортировки или поиска определенных записей используйте функции Сортировка и фильтр.\nНачиная с ячейки C3, введите в таблице вехи и их даты, а также укажите позицию для отображения вехи на диаграмме.\nСтолбец B скрыт. На диаграмме, созданной по этим данным, для просмотра отрезков временной шкалы используется полоса прокрутки. Столбец B помогает определить, какие вехи должны быть видны на диаграмме при пошаговой прокрутке. \nПредупреждение. Если изменить или удалить столбец B, целостность диаграммы, встроенной в эту книгу, может быть нарушена.","№","Позиция","Дата","Веха"]
["В ячейке C1 укажите позицию для отображения даты и вехи на диаграмме. Чтобы веха отображалась выше временной шкалы, введите положительное число от 1 до 3. Чтобы веха отображалась ниже временной шкалы, введите отрицательное число от –1 до –3.\nВ столбцах D и E таблицы введите дату и веху (или мероприятие).\nСделайте то же самое для каждой новой строки в таблице справа.\nСтроки 3–26 содержат пример данных. Чтобы создать собственный план разработки продукта, измените или удалите эти данные.\nДальнейшие инструкции см. в ячейке A27.",{"$f":"ROW($A1)","v":1},1,{"$f":"TODAY()","v":"2018-06-29"},"Начало"]
[null,{"$f":"ROW($A2)","v":2},-2,{"$f":"D3+10","v":"2018-07-09"},"Анализ проблемы\nМероприятие 1"]
[null,3,1,{"$f":"D4+20","v":"2018-07-29"},"Разработка экономического обоснования\nМероприятие 1\nМероприятие 2"]
[null,4,-1,{"$f":"D5+30","v":"2018-08-28"},"Просмотр презентации"]
[null,5,{"v":-0.5,"d":"-1"},{"$f":"D6+40","v":"2018-10-07"},"Подбор руководителей\nМероприятие 1\nМероприятие 2"]
[null,6,2,{"$f":"D7+50","v":"2018-11-26"},"Выработка общей позиции руководства\nМероприятие 1\nМероприятие 2\nМероприятие 3"]
[null,7,{"v":0.5,"d":"1"},{"$f":"D8+60","v":"2019-01-25"},"Вовлечение заинтересованных лиц"]
[null,8,-1,{"$f":"D9+70","v":"2019-04-05"},"Подбор ресурсов"]
[null,9,{"v":0.5,"d":"1"},{"$f":"D10+80","v":"2019-06-24"},"Создание команды\nМероприятие 1 "]
[null,10,-2,{"$f":"D11+90","v":"2019-09-22"},"Начало работы команды\nМероприятие 1 \nМероприятие 2\nМероприятие 3\nМероприятие 4"]
[null,11,3,{"$f":"D12+100","v":"2019-12-31"},"Начало сбора данных"]
[null,12,-1,{"$f":"D13+90","v":"2020-03-30"},"Анализ данных"]
[null,13,1,{"$f":"D14+80","v":"2020-06-18"},"Проектирование"]
[null,14,1,{"$f":"D15+70","v":"2020-08-27"},"Подтверждение концепции"]
[null,15,-3,{"$f":"D16+60","v":"2020-10-26"},"Тестирование и анализ"]
[null,16,-2,{"$f":"D17+50","v":"2020-12-15"},"Изменение проекта"]
[null,17,2,{"$f":"D18+40","v":"2021-01-24"},"Изменение реализации"]
[null,18,-1,{"$f":"D19+30","v":"2021-02-23"},"Тестирование и анализ"]
[null,19,1,{"$f":"D20+20","v":"2021-03-15"},"Изменение проекта"]
[null,20,-3,{"$f":"D21+10","v":"2021-03-25"},"Изменение реализации"]
[null,21,2,{"$f":"D22+20","v":"2021-04-14"},"Заключительное тестирование"]
[null,22,1,{"$f":"D23+30","v":"2021-05-14"},"Бета-тестирование"]
[null,23,-3,{"$f":"D24+40","v":"2021-06-23"},"Ревизия"]
[null,24,-2,{"$f":"D25+50","v":"2021-08-12"},"Выпуск на рынок"]
["Чтобы добавить в таблицу вех новые строки, просто вставьте их над этой.\nНа этом листе больше нет инструкций.",null,"Чтобы добавить еще вехи, вставьте новую строку над этой."]

{"sheet":"План разработки","index":1,"n_rows":3,"n_cols":4,"rows_kept":3}
["На этом листе представлена диаграмма, отображающая вехи с листа «Вехи». \nГоды показаны в ячейках B2, C2 и D2, и применен стиль «Заголовок 3».\nНа диаграмме одновременно отображаются 10 вех. \nПрокручивайте план разработки продукта с помощью полосы прокрутки в ячейках B4–D4.\nВ ячейках B3–D3 указаны годы временной шкалы.\nНа этом листе больше нет инструкций."]
[]
[null,{"$f":"'Данные диаграммы'!B20","v":2018},{"$f":"'Данные диаграммы'!B21","v":""},{"$f":"'Данные диаграммы'!B22","v":2019}]

{"sheet":"Об этой книге","index":2,"n_rows":5,"n_cols":1,"rows_kept":5}
["Об этой книге"]
["Инструкции для средств чтения с экрана"]
["Эта книга состоит из четырех листов. \n\nВехи\nПлан разработки\nОб этой книге\nДанные диаграммы (скрытые)\n\nИнструкции для соответствующего листа находятся на каждом листе в столбце A начиная с ячейки A1. Они представлены в виде скрытого текста. Инструкция для каждого шага находится в соответствующей строке. Последующие шаги описаны в ячейках A2, A3 и т. д., если явно не указано иное. Например, в инструкциях может быть сказано «Далее см. ячейку A6». \n\nСкрытый текст не выводится на печать.\n\nЧтобы убрать эти инструкции с листа, просто удалите столбец A.\n"]
["Для отображения вех и мероприятий на диаграмме в этом плане разработки используются позиции. Позиции позволяют задавать вес вех и мероприятий. Вы можете скорректировать их значения с учетом своих потребностей. Например, для вехи или мероприятия 3 можно задать больший вес, чем для вехи или мероприятия 2. Чтобы отразить это на диаграмме, просто сделайте значение позиции для третьей вехи или действия больше, чем для второй.  \n"]
["Это последняя инструкция на данном листе."]

{"sheet":"Данные диаграммы","index":3,"n_rows":26,"n_cols":4,"rows_kept":26,"hidden":true}
["Этот лист содержит данные для создания динамической диаграммы. Не удаляйте этот лист!\nУдаление этого листа может нарушить динамические возможности книги.","Не удаляйте этот лист!"]
["В ячейке B2 содержится название таблицы.","Содержимое динамической диаграммы"]
["Ячейки B3–D3 содержат заголовки столбцов таблицы. \nЭта таблица обновляется автоматически на основе содержимого, введенного на листе «Вехи».\nПредупреждение. Если изменить или удалить содержимое этой таблицы, может нарушиться возможность динамического обновления диаграммы на листе «План разработки».\nДальнейшие инструкции см. в ячейке A15.","Дата","События","Позиция"]
[null,{"$f":"IFERROR(IF(LEN(Вехи!D3)=0,\"\",INDEX(ВехиПланаРазработки[],Вехи!$B3+$B$17,3)),\"\")","v":"2018-06-29"},{"$f":"IFERROR(IF(LEN(Вехи!E3)=0,\"\",INDEX(ВехиПланаРазработки[],Вехи!$B3+$B$17,4)),\"\")","v":"Начало"},{"$f":"IFERROR(INDEX(ВехиПланаРазработки[],Вехи!$B3+$B$17,2),\"\")","v":1}]
[null,{"$f":"IFERROR(IF(LEN(Вехи!D4)=0,\"\",INDEX(ВехиПланаРазработки[],Вехи!$B4+$B$17,3)),\"\")","v":"2018-07-09"},{"$f":"IFERROR(IF(LEN(Вехи!E4)=0,\"\",INDEX(ВехиПланаРазработки[],Вехи!$B4+$B$17,4)),\"\")","v":"Анализ проблемы\nМероприятие 1"},{"$f":"IFERROR(INDEX(ВехиПланаРазработки[],Вехи!$B4+$B$17,2),\"\")","v":-2}]
[null,{"$f":"IFERROR(IF(LEN(Вехи!D5)=0,\"\",INDEX(ВехиПланаРазработки[],Вехи!$B5+$B$17,3)),\"\")","v":"2018-07-29"},{"$f":"IFERROR(IF(LEN(Вехи!E5)=0,\"\",INDEX(ВехиПланаРазработки[],Вехи!$B5+$B$17,4)),\"\")","v":"Разработка экономического обоснования\nМероприятие 1\nМероприятие 2"},{"$f":"IFERROR(INDEX(ВехиПланаРазработки[],Вехи!$B5+$B$17,2),\"\")","v":1}]
[null,{"$f":"IFERROR(IF(LEN(Вехи!D6)=0,\"\",INDEX(ВехиПланаРазработки[],Вехи!$B6+$B$17,3)),\"\")","v":"2018-08-28"},{"$f":"IFERROR(IF(LEN(Вехи!E6)=0,\"\",INDEX(ВехиПланаРазработки[],Вехи!$B6+$B$17,4)),\"\")","v":"Просмотр презентации"},{"$f":"IFERROR(INDEX(ВехиПланаРазработки[],Вехи!$B6+$B$17,2),\"\")","v":-1}]
[null,{"$f":"IFERROR(IF(LEN(Вехи!D7)=0,\"\",INDEX(ВехиПланаРазработки[],Вехи!$B7+$B$17,3)),\"\")","v":"2018-10-07"},{"$f":"IFERROR(IF(LEN(Вехи!E7)=0,\"\",INDEX(ВехиПланаРазработки[],Вехи!$B7+$B$17,4)),\"\")","v":"Подбор руководителей\nМероприятие 1\nМероприятие 2"},{"$f":"IFERROR(INDEX(ВехиПланаРазработки[],Вехи!$B7+$B$17,2),\"\")","v":-0.5}]
[null,{"$f":"IFERROR(IF(LEN(Вехи!D8)=0,\"\",INDEX(ВехиПланаРазработки[],Вехи!$B8+$B$17,3)),\"\")","v":"2018-11-26"},{"$f":"IFERROR(IF(LEN(Вехи!E8)=0,\"\",INDEX(ВехиПланаРазработки[],Вехи!$B8+$B$17,4)),\"\")","v":"Выработка общей позиции руководства\nМероприятие 1\nМероприятие 2\nМероприятие 3"},{"$f":"IFERROR(INDEX(ВехиПланаРазработки[],Вехи!$B8+$B$17,2),\"\")","v":2}]
[null,{"$f":"IFERROR(IF(LEN(Вехи!D9)=0,\"\",INDEX(ВехиПланаРазработки[],Вехи!$B9+$B$17,3)),\"\")","v":"2019-01-25"},{"$f":"IFERROR(IF(LEN(Вехи!E9)=0,\"\",INDEX(ВехиПланаРазработки[],Вехи!$B9+$B$17,4)),\"\")","v":"Вовлечение заинтересованных лиц"},{"$f":"IFERROR(INDEX(ВехиПланаРазработки[],Вехи!$B9+$B$17,2),\"\")","v":0.5}]
[null,{"$f":"IFERROR(IF(LEN(Вехи!D10)=0,\"\",INDEX(ВехиПланаРазработки[],Вехи!$B10+$B$17,3)),\"\")","v":"2019-04-05"},{"$f":"IFERROR(IF(LEN(Вехи!E10)=0,\"\",INDEX(ВехиПланаРазработки[],Вехи!$B10+$B$17,4)),\"\")","v":"Подбор ресурсов"},{"$f":"IFERROR(INDEX(ВехиПланаРазработки[],Вехи!$B10+$B$17,2),\"\")","v":-1}]
[null,{"$f":"IFERROR(IF(LEN(Вехи!D11)=0,\"\",INDEX(ВехиПланаРазработки[],Вехи!$B11+$B$17,3)),\"\")","v":"2019-06-24"},{"$f":"IFERROR(IF(LEN(Вехи!E11)=0,\"\",INDEX(ВехиПланаРазработки[],Вехи!$B11+$B$17,4)),\"\")","v":"Создание команды\nМероприятие 1 "},{"$f":"IFERROR(INDEX(ВехиПланаРазработки[],Вехи!$B11+$B$17,2),\"\")","v":0.5}]
[null,{"$f":"IFERROR(IF(LEN(Вехи!D12)=0,\"\",INDEX(ВехиПланаРазработки[],Вехи!$B12+$B$17,3)),\"\")","v":"2019-09-22"},{"$f":"IFERROR(IF(LEN(Вехи!E12)=0,\"\",INDEX(ВехиПланаРазработки[],Вехи!$B12+$B$17,4)),\"\")","v":"Начало работы команды\nМероприятие 1 \nМероприятие 2\nМероприятие 3\nМероприятие 4"},{"$f":"IFERROR(INDEX(ВехиПланаРазработки[],Вехи!$B12+$B$17,2),\"\")","v":-2}]
[]
["Значение шага используется для прокрутки плана разработки. Название этой функции находится в ячейке B15.\nВ ячейках B16 и B17 содержится таблица с заголовком и одним значением.\nДальнейшие инструкции см. в ячейке A19.","Возможность прокрутки"]
[null,"Шаг строки"]
[null,0]
[]
["На диаграмме «План разработки» отображаются годы временной шкалы. Для этого они должны быть извлечены из списка вех. \nНазвание этого раздела («Год») находится в ячейке B19. \nЗначения годов формируются автоматически в ячейках C20–C22.\nПредупреждение. Если удалить или изменить эти значения годов, это может повлиять на точность диаграммы «План разработки».\nДальнейшие инструкции см. в ячейке A24.","Год"]
[null,{"$f":"IFERROR(YEAR(B4),\"\")","v":2018},"<-- Год начала плана разработки"]
[null,{"$f":"IFERROR(IF(YEAR($B$9)=$B$20,\"\",YEAR($B$9)),\"\")","v":""},"<-- Год середины плана разработки (значение может быть пустым, если год совпадает с годом начала)"]
[null,{"$f":"IFERROR(IF(YEAR($B$13)=$B$20,\"\",YEAR($B$13)),\"\")","v":2019},"<-- Год завершения плана разработки (значение может быть пустым, если год совпадает с годом начала)"]
[]
["На кольцевых маркерах диаграммы «План разработки» отображаются даты из динамического содержимого, представленного на этом листе. В ячейке C24 указана Первая дата, в ячейке C25 — Средняя дата, а в ячейке C26 — Последняя дата.\nНа этом листе больше нет инструкций.","Первая дата",{"$f":"B4","v":"2018-06-29"}]
[null,"Средняя дата",{"$f":"B9","v":"2018-11-26"}]
[null,"Последняя дата",{"$f":"B13","v":"2019-09-22"}]